bitfinex-derivatives/quotes_BTCF0:USTF0_20251230
["timestamp","ask_amount","ask_price","bid_price","bid_amount"]
[1767115557728,0.01145378,88712.0,88694.0,0.0112868]
[1767115557925,0.0112849,88710.0,88694.0,0.0112868]
[1767115558123,0.0112852,88708.0,88693.0,0.00016918]
[1767115558526,0.16807738,88703.0,88685.0,0.05668]
[1767115558724,0.0112853,88707.0,88686.0,0.09592]
[1767115559641,0.0112853,88707.0,88688.0,0.00016918]
[1767115560240,0.0112855,88705.0,88689.0,0.0112874]
[1767115560941,0.0112853,88707.0,88690.0,0.16807738]
[1767115561141,0.0112853,88707.0,88689.0,0.0112874]
[1767115561744,0.0112855,88705.0,88689.0,0.0112874]
[1767115563441,0.0112851,88708.0,88691.0,0.0112872]
[1767115563643,0.17936228,88710.0,88693.0,0.0112869]
[1767115563843,0.0112851,88708.0,88693.0,0.0112869]
[1767115564146,0.0112851,88708.0,88690.0,0.0112873]
[1767115564741,0.0112851,88708.0,88688.0,0.00016918]
[1767115564742,0.0112859,88702.0,88688.0,0.00016918]
[1767115564942,0.0112861,88700.0,88688.0,0.00016918]
[1767115565732,0.0112868,88695.0,88670.0,0.16807738]
[1767115565931,0.0112864,88698.0,88680.0,0.0112886]
[1767115566135,0.0112864,88698.0,88682.0,0.0112883]
[1767115566540,0.011286,88701.0,88682.0,0.0112883]
[1767115566843,0.011286,88701.0,88684.0,0.0112881]
[1767115566844,0.00016918,88700.0,88684.0,0.0112881]
[1767115567040,0.00016918,88700.0,88683.0,0.00016918]
[1767115567346,0.0112863,88699.0,88683.0,0.00016918]
[1767115568147,0.02974049,88698.0,88683.0,0.00016918]
[1767115568341,0.02974049,88697.0,88683.0,0.00016918]
[1767115568542,0.02974049,88696.0,88683.0,0.01145738]
[1767115568743,0.02974049,88695.0,88683.0,0.01145738]
[1767115569047,0.02974049,88694.0,88683.0,0.01145738]
[1767115569237,0.02974049,88693.0,88683.0,0.01145738]
[1767115569439,0.01145538,88700.0,88683.0,0.01145738]
[1767115569440,0.02974049,88692.0,88683.0,0.01145738]
[1767115569640,0.02974049,88691.0,88683.0,0.01145738]
[1767115569841,0.01145538,88700.0,88683.0,0.01145738]
[1767115570148,0.02930945,88699.0,88683.0,0.01145738]
[1767115570339,0.02930945,88698.0,88683.0,0.01145738]
[1767115570546,0.02930945,88697.0,88683.0,0.01145738]
[1767115570738,0.02930945,88696.0,88683.0,0.01145738]
[1767115570936,0.02930945,88695.0,88683.0,0.01145738]
[1767115571145,0.02930945,88694.0,88683.0,0.01145738]
[1767115571444,0.02930945,88693.0,88683.0,0.01145738]
[1767115571645,0.02930945,88692.0,88683.0,0.01145738]
[1767115571846,0.02930945,88691.0,88683.0,0.01145738]
[1767115572039,0.01145538,88700.0,88683.0,0.01145738]
[1767115572348,0.02932278,88699.0,88683.0,0.01145738]
[1767115572646,0.02932278,88698.0,88683.0,0.01145738]
[1767115572846,0.02932278,88697.0,88683.0,0.01145738]
[1767115573051,0.02932278,88696.0,88686.0,0.0112878]
[1767115573240,0.02932278,88695.0,88683.0,0.01145738]
[1767115573441,0.02932278,88694.0,88683.0,0.01145738]
[1767115573641,0.00016918,88700.0,88683.0,0.01145738]
[1767115573950,0.02931273,88699.0,88683.0,0.01145738]
[1767115574149,0.02931273,88698.0,88683.0,0.01145738]
[1767115574344,0.02931273,88697.0,88683.0,0.01145738]
[1767115574547,0.02931273,88696.0,88683.0,0.01145738]
[1767115574849,0.02931273,88695.0,88683.0,0.01145738]
[1767115575049,0.02931273,88694.0,88683.0,0.01145738]
[1767115575251,0.00016918,88700.0,88683.0,0.01145738]
[1767115575443,0.029309,88699.0,88683.0,0.01145738]
[1767115575642,0.029309,88698.0,88683.0,0.01145738]
[1767115575844,0.029309,88697.0,88683.0,0.01145738]
[1767115576142,0.029309,88696.0,88683.0,0.01145738]
[1767115576341,0.029309,88695.0,88683.0,0.01145738]
[1767115576542,0.0112863,88699.0,88683.0,0.00016918]
[1767115576743,0.0112865,88697.0,88683.0,0.00016918]
[1767115576948,0.0293076,88696.0,88683.0,0.01145738]
[1767115577148,0.0293076,88695.0,88683.0,0.01145738]
[1767115577339,0.00016918,88700.0,88683.0,0.01145738]
[1767115577542,0.02930388,88699.0,88683.0,0.01145738]
[1767115577738,0.02930388,88698.0,88683.0,0.01145738]
[1767115577950,0.02930388,88697.0,88683.0,0.01145738]
[1767115578252,0.02930388,88696.0,88683.0,0.01145738]
[1767115578444,0.02930388,88695.0,88683.0,0.01145738]
[1767115578647,0.00016918,88700.0,88683.0,0.01145738]
[1767115578850,0.0112834,88722.0,88705.0,0.0112854]
[1767115579154,0.09592,88723.0,88709.0,0.0112849]
[1767115579358,0.0112827,88727.0,88709.0,0.0112849]
[1767115579543,0.0112823,88730.0,88711.0,0.0112846]
[1767115579953,0.01145156,88729.0,88712.0,0.00016906]
[1767115580155,0.0112827,88727.0,88712.0,0.00016906]
[1767115580552,0.00016906,88729.0,88712.0,0.00016906]
[1767115581461,0.00016906,88729.0,88712.0,0.01145356]
[1767115582653,0.00016906,88729.0,88714.0,0.0112842]
[1767115582864,0.00016906,88729.0,88712.0,0.00016906]
[1767115588852,0.00016906,88729.0,88713.0,0.0112844]
[1767115589158,0.0112826,88728.0,88712.0,0.00016906]
[1767115590866,0.02916192,88727.0,88712.0,0.00016906]
[1767115591066,0.02916192,88726.0,88712.0,0.00016906]
[1767115591360,0.02916192,88725.0,88712.0,0.00016906]
[1767115591564,0.02916192,88724.0,88699.0,0.05664]
[1767115591763,0.0112843,88715.0,88699.0,0.15256]
[1767115592961,0.0112838,88719.0,88699.0,0.15256]
[1767115593158,0.0291527,88718.0,88699.0,0.15256]
[1767115593366,0.0291527,88717.0,88699.0,0.15256]
[1767115593666,0.0112838,88719.0,88700.0,0.0112861]
[1767115593867,0.02915086,88718.0,88700.0,0.0112861]
[1767115594067,0.02915086,88717.0,88700.0,0.0112861]
[1767115594366,0.02915086,88716.0,88700.0,0.0679261]
[1767115594566,0.02915086,88715.0,88700.0,0.0679261]
[1767115594769,0.02915086,88714.0,88700.0,0.0679261]
[1767115594962,0.011284,88717.0,88700.0,0.0112861]
[1767115595265,0.02915054,88716.0,88700.0,0.0679261]
[1767115595464,0.02915054,88715.0,88700.0,0.0679261]
[1767115595666,0.02915054,88714.0,88700.0,0.0679261]
[1767115595864,0.011284,88717.0,88700.0,0.0679261]
[1767115596165,0.02915101,88716.0,88700.0,0.0679261]
[1767115596358,0.02915101,88715.0,88700.0,0.0679261]
[1767115596562,0.02915101,88714.0,88700.0,0.0679261]
[1767115596858,0.0112836,88720.0,88700.0,0.0679261]
[1767115597058,0.02915318,88719.0,88702.0,0.0112858]
[1767115597267,0.02915318,88718.0,88702.0,0.0112858]
[1767115597464,0.02915318,88717.0,88702.0,0.0112858]
[1767115597665,0.02915318,88716.0,88702.0,0.0112858]
[1767115597868,0.02915318,88715.0,88702.0,0.0112858]
[1767115598067,0.02915318,88714.0,88702.0,0.0112858]
[1767115598270,0.0112838,88718.0,88702.0,0.0112858]
[1767115598468,0.02916203,88717.0,88702.0,0.0112858]
[1767115598665,0.02916203,88716.0,88702.0,0.0112858]
[1767115598865,0.02916203,88715.0,88702.0,0.0112858]
[1767115599170,0.02916203,88714.0,88702.0,0.0112858]
[1767115599363,0.02916203,88713.0,88702.0,0.0112858]
[1767115599565,0.0112838,88718.0,88702.0,0.0112858]
[1767115599871,0.02916573,88717.0,88702.0,0.0112858]
[1767115600169,0.02916573,88716.0,88702.0,0.0112858]
[1767115600361,0.02916573,88715.0,88702.0,0.0112858]
[1767115600572,0.02916573,88714.0,88702.0,0.0112858]
[1767115600764,0.02916573,88713.0,88702.0,0.0112858]
[1767115601066,0.00016906,88729.0,88708.0,0.011285]
[1767115601067,0.0112831,88724.0,88708.0,0.011285]
[1767115601261,0.02910493,88723.0,88708.0,0.011285]
[1767115601462,0.02910493,88722.0,88708.0,0.011285]
[1767115601664,0.02910493,88721.0,88710.0,0.0112848]
[1767115601866,0.02910493,88720.0,88710.0,0.0112848]
[1767115602066,0.02910493,88719.0,88710.0,0.0112848]
[1767115602266,0.1072027,88727.0,88710.0,0.0112848]
[1767115602267,0.02910493,88718.0,88710.0,0.0112848]
[1767115602566,0.02910493,88717.0,88710.0,0.0112848]
[1767115602874,0.0112829,88725.0,88709.0,0.0112849]
[1767115603175,0.02911328,88724.0,88709.0,0.0112849]
[1767115603376,0.02911328,88723.0,88709.0,0.0112849]
[1767115603580,0.02911328,88722.0,88708.0,0.011285]
[1767115603873,0.0112829,88725.0,88708.0,0.011285]
[1767115603874,0.02911328,88721.0,88708.0,0.011285]
[1767115604066,0.02911328,88720.0,88708.0,0.011285]
[1767115604266,0.0112829,88725.0,88708.0,0.011285]
[1767115604468,0.02912532,88724.0,88708.0,0.011285]
[1767115604772,0.02912532,88723.0,88708.0,0.011285]
[1767115604973,0.02912532,88722.0,88708.0,0.011285]
[1767115605268,0.02912532,88721.0,88708.0,0.011285]
[1767115605472,0.02912532,88720.0,88708.0,0.011285]
[1767115605664,0.02912532,88719.0,88708.0,0.011285]
[1767115605962,0.09592,88727.0,88712.0,0.0112845]
[1767115606160,0.02911618,88726.0,88712.0,0.0112845]
[1767115606374,0.02911618,88725.0,88712.0,0.0112845]
[1767115606575,0.02911618,88724.0,88712.0,0.0112845]
[1767115606766,0.02911618,88723.0,88712.0,0.0112845]
[1767115606968,0.02911618,88722.0,88712.0,0.0112845]
[1767115607178,0.02911618,88721.0,88712.0,0.0112845]
[1767115607370,0.02911618,88720.0,88712.0,0.0112845]
[1767115607676,0.09592,88727.0,88712.0,0.0112845]
[1767115607871,0.09592,88727.0,88700.0,0.05664]
[1767115607872,0.09592,88727.0,88714.0,0.0112842]
[1767115608080,0.09592,88727.0,88711.0,0.0112846]
[1767115609079,0.09592,88727.0,88714.0,0.0112843]
[1767115609576,0.05664,88728.0,88714.0,0.0112843]
[1767115612279,0.05664,88728.0,88711.0,0.0112846]
[1767115612470,0.05664,88728.0,88714.0,0.0112843]
[1767115613682,0.05664,88728.0,88711.0,0.0112846]
[1767115613978,0.0679226,88728.0,88711.0,0.0112846]
[1767115614174,0.011284,88717.0,88698.0,0.00016906]
[1767115614476,0.0112841,88716.0,88700.0,0.0112861]
[1767115614881,0.0112837,88719.0,88700.0,0.0112861]
[1767115615879,0.09592,88723.0,88698.0,0.09608906]
[1767115616078,0.0112833,88722.0,88675.0,0.2398]
[1767115616279,0.0112842,88715.0,88676.0,0.15256]
[1767115616579,0.0112861,88700.0,88680.0,0.0112886]
[1767115616779,0.0112861,88700.0,88676.0,0.15256]
[1767115616982,0.0112858,88703.0,88681.0,0.0112884]
[1767115617170,0.0112858,88703.0,88683.0,0.0112882]
[1767115617370,0.00016906,88702.0,88685.0,0.0112879]
[1767115617981,0.00016906,88702.0,88687.0,0.0112877]
[1767115618582,0.00016906,88702.0,88687.0,0.1072077]
[1767115619686,0.02903699,88701.0,88687.0,0.1072077]
[1767115619981,0.00016906,88702.0,88687.0,0.1072077]
[1767115620285,0.02903808,88701.0,88687.0,0.09592]
[1767115620484,0.00016906,88702.0,88687.0,0.09592]
[1767115620682,0.02903326,88701.0,88684.0,0.0001127]
[1767115620885,0.02903326,88700.0,88692.0,0.011287]
[1767115621077,0.00016906,88702.0,88689.0,0.0112875]
[1767115621281,0.029028,88701.0,88686.0,0.0112878]
[1767115621588,0.00016906,88702.0,88684.0,0.0001127]
[1767115621779,0.02901666,88701.0,88684.0,0.0001127]
[1767115621982,0.02901666,88700.0,88684.0,0.0114008]
[1767115622189,0.02901372,88699.0,88685.0,0.15256]
[1767115622388,0.01145496,88702.0,88685.0,0.15256]
[1767115622580,0.02900909,88701.0,88685.0,0.15256]
[1767115622786,0.02900909,88700.0,88685.0,0.15256]
[1767115622989,0.09592,88711.0,88692.0,0.011287]
[1767115623290,0.0112848,88710.0,88692.0,0.011287]
[1767115624189,0.01145386,88710.0,88692.0,0.011287]
[1767115624988,0.00016906,88710.0,88685.0,0.15256]
[1767115625387,0.00016906,88710.0,88697.0,0.0112864]
[1767115626992,0.00016906,88710.0,88699.0,0.0112861]
[1767115627879,0.0112836,88720.0,88700.0,0.011286]
[1767115628488,0.0112836,88720.0,88700.0,0.17929566]
[1767115628883,0.00016906,88719.0,88701.0,0.00016906]
[1767115630287,0.00016906,88719.0,88702.0,0.0112858]
[1767115631403,0.00016906,88719.0,88701.0,0.00016906]
[1767115632996,0.00016906,88719.0,88704.0,0.0112855]
[1767115633203,0.00016906,88719.0,88702.0,0.0112858]
[1767115634998,0.02875478,88718.0,88702.0,0.0112858]
[1767115635200,0.02875478,88717.0,88702.0,0.0112858]
[1767115635497,0.00016906,88719.0,88702.0,0.0112858]
[1767115635698,0.02875584,88718.0,88702.0,0.0112858]
[1767115635899,0.02875584,88717.0,88702.0,0.0112858]
[1767115636100,0.00016906,88719.0,88702.0,0.0112858]
[1767115636299,0.02875542,88718.0,88702.0,0.0112858]
[1767115636497,0.02875542,88717.0,88702.0,0.0112858]
[1767115636701,0.00016906,88719.0,88702.0,0.0112858]
[1767115636897,0.0112848,88710.0,88701.0,0.00016906]
[1767115637096,0.0112857,88703.0,88666.0,0.11263781]
[1767115637304,0.0112857,88703.0,88680.0,0.16800966]
[1767115637510,0.0112854,88706.0,88686.0,0.0112878]
[1767115637808,0.0112856,88704.0,88687.0,0.15256]
[1767115638009,0.01145466,88704.0,88687.0,0.16401676]
[1767115638208,0.00016906,88704.0,88687.0,0.16401676]
[1767115638600,0.00016906,88704.0,88689.0,0.0112874]
[1767115639211,0.02874178,88703.0,88689.0,0.0112874]
[1767115639511,0.00016906,88704.0,88689.0,0.0112874]
[1767115639700,0.02874279,88703.0,88689.0,0.0112874]
[1767115639902,0.00016906,88704.0,88689.0,0.0112874]
[1767115640206,0.02874129,88703.0,88689.0,0.0112874]
[1767115640403,0.00016906,88704.0,88690.0,0.16800966]
[1767115640608,0.09592,88710.0,88694.0,0.0112868]
[1767115640808,0.02874166,88709.0,88694.0,0.0112868]
[1767115641010,0.02874166,88708.0,88696.0,0.0112865]
[1767115641212,0.02874166,88707.0,88690.0,0.16800966]
[1767115641411,0.09592,88710.0,88699.0,0.0112862]
[1767115641711,0.02874517,88709.0,88701.0,0.0112859]
[1767115641913,0.09592,88710.0,88701.0,0.0112859]
[1767115642112,0.00016906,88713.0,88701.0,0.0112859]
[1767115642312,0.02874053,88712.0,88698.0,0.0112863]
[1767115642514,0.02874053,88711.0,88698.0,0.0112863]
[1767115642808,0.02874053,88710.0,88698.0,0.0112863]
[1767115643013,0.02874053,88709.0,88698.0,0.0112863]
[1767115643210,0.02874053,88708.0,88698.0,0.0112863]
[1767115643413,0.02874053,88707.0,88690.0,0.16800966]
[1767115643605,0.00016906,88713.0,88690.0,0.16800966]
[1767115643806,0.02874696,88712.0,88700.0,0.011286]
[1767115644006,0.02874696,88711.0,88700.0,0.011286]
[1767115644206,0.02874696,88710.0,88700.0,0.011286]
[1767115644410,0.02874696,88709.0,88700.0,0.011286]
[1767115644716,0.02874696,88708.0,88700.0,0.011286]
[1767115645013,0.02874696,88707.0,88700.0,0.011286]
[1767115645208,0.00016906,88713.0,88700.0,0.011286]
[1767115645414,0.02874896,88712.0,88700.0,0.011286]
[1767115645609,0.02874896,88711.0,88700.0,0.011286]
[1767115645812,0.02874896,88710.0,88700.0,0.011286]
[1767115646008,0.02874896,88709.0,88697.0,0.0112864]
[1767115646213,0.02874896,88708.0,88699.0,0.0112861]
[1767115646410,0.02874896,88707.0,88696.0,0.0679265]
[1767115646717,0.00016906,88713.0,88696.0,0.0679265]
[1767115646908,0.0287498,88712.0,88696.0,0.05664]
[1767115647108,0.0287498,88711.0,88696.0,0.05664]
[1767115647311,0.19675946,88710.0,88696.0,0.05664]
[1767115647604,0.0287498,88709.0,88696.0,0.05664]
[1767115652019,0.0112855,88705.0,88687.0,0.00016906]
[1767115652216,0.0287498,88704.0,88688.0,0.15256]
[1767115652416,0.0287498,88703.0,88688.0,0.15256]
[1767115652617,0.23593456,88710.0,88688.0,0.15256]
[1767115652817,0.23593456,88710.0,88690.0,0.16800966]
[1767115652818,0.02875729,88709.0,88690.0,0.16800966]
[1767115653019,0.02875729,88708.0,88696.0,0.0112866]
[1767115653318,0.00375729,88707.0,88698.0,0.0112863]
[1767115653509,0.00016906,88713.0,88698.0,0.0112863]
[1767115653706,0.06056722,88722.0,88708.0,0.011285]
[1767115653915,0.05664,88723.0,88708.0,0.011285]
[1767115656014,0.00016906,88724.0,88710.0,0.16800966]
[1767115656321,0.3253,88767.0,88707.0,0.00016906]
[1767115656322,0.0112817,88735.0,88713.0,0.16800966]
[1767115656519,0.0112817,88735.0,88714.0,0.05664]
[1767115657117,0.0112824,88729.0,88714.0,0.05664]
[1767115657319,0.16800966,88730.0,88714.0,0.05664]
[1767115658020,0.01145106,88733.0,88714.0,0.05664]
[1767115658321,0.16800966,88730.0,88714.0,0.05664]
[1767115659808,0.16800966,88730.0,88711.0,0.0112846]
[1767115660121,0.0112828,88727.0,88712.0,0.15256]
[1767115660323,0.0112831,88724.0,88712.0,0.15256]
[1767115660517,0.0112834,88721.0,88707.0,0.00016906]
[1767115661120,0.0112838,88719.0,88706.0,0.05664]
[1767115661312,0.23593296,88722.0,88706.0,0.05664]
[1767115661627,0.0112837,88719.0,88706.0,0.05664]
[1767115663014,0.0112837,88719.0,88704.0,0.09608906]
[1767115663320,0.09592,88719.0,88696.0,0.05664]
[1767115663526,0.16800966,88710.0,88696.0,0.05664]
[1767115664427,0.16800966,88710.0,88697.0,0.0112864]
[1767115665426,0.02832742,88709.0,88697.0,0.0112864]
[1767115665626,0.16800966,88710.0,88697.0,0.0112864]
[1767115665825,0.0283274,88709.0,88697.0,0.0112864]
[1767115666026,0.16800966,88710.0,88697.0,0.0112864]
[1767115666226,0.02833922,88709.0,88697.0,0.0112864]
[1767115666427,0.16800966,88710.0,88697.0,0.0112864]
[1767115666730,0.02834064,88709.0,88697.0,0.0112864]
[1767115666927,0.16800966,88710.0,88697.0,0.0112864]
[1767115667120,0.02834063,88709.0,88697.0,0.0112864]
[1767115667322,0.16800966,88710.0,88697.0,0.0112864]
[1767115667523,0.02834166,88709.0,88697.0,0.0112864]
[1767115667721,0.16800966,88710.0,88697.0,0.0112864]
[1767115667921,0.02833965,88709.0,88697.0,0.0112864]
[1767115668227,0.16800966,88710.0,88696.0,0.05664]
[1767115668528,0.02834152,88709.0,88696.0,0.0679265]
[1767115668724,0.16800966,88710.0,88696.0,0.0679265]
[1767115668924,0.02834152,88709.0,88696.0,0.0679265]
[1767115669126,0.16800966,88710.0,88696.0,0.0679265]
[1767115669427,0.0283436,88709.0,88696.0,0.0679265]
[1767115669620,0.16800966,88710.0,88696.0,0.0679265]
[1767115669820,0.02834312,88709.0,88696.0,0.0679265]
[1767115670021,0.16800966,88710.0,88696.0,0.0679265]
[1767115670221,0.02834362,88709.0,88696.0,0.0679265]
[1767115670422,0.16800966,88710.0,88696.0,0.0679265]
[1767115670621,0.02834555,88709.0,88696.0,0.0679265]
[1767115670822,0.02834555,88708.0,88696.0,0.0679265]
[1767115671029,0.16800966,88710.0,88696.0,0.0679265]
[1767115671230,0.02835077,88709.0,88696.0,0.0679265]
[1767115671528,0.02835077,88708.0,88696.0,0.0679265]
[1767115671724,0.16800966,88710.0,88696.0,0.0679265]
[1767115671925,0.16800966,88710.0,88696.0,0.05664]
[1767115672129,0.02835226,88709.0,88696.0,0.05664]
[1767115672320,0.02835226,88708.0,88696.0,0.05664]
[1767115672521,0.16800966,88710.0,88696.0,0.05664]
[1767115672722,0.02835357,88709.0,88696.0,0.05664]
[1767115672923,0.16800966,88710.0,88696.0,0.05664]
[1767115672924,0.02835357,88708.0,88696.0,0.05664]
[1767115673125,0.16800966,88710.0,88696.0,0.05664]
[1767115673328,0.02835561,88709.0,88696.0,0.05664]
[1767115673623,0.02835561,88708.0,88696.0,0.05664]
[1767115673827,0.16800966,88710.0,88696.0,0.05664]
[1767115674125,0.02835682,88709.0,88696.0,0.05664]
[1767115674432,0.02835682,88708.0,88696.0,0.05664]
[1767115674633,0.16800966,88710.0,88697.0,0.0112864]
[1767115674834,0.00016906,88712.0,88696.0,0.05664]
[1767115675334,0.00016906,88712.0,88699.0,0.0112862]
[1767115675726,0.00016906,88712.0,88700.0,0.011286]
[1767115677120,0.00016906,88712.0,88697.0,0.0112864]
[1767115677325,0.01145366,88712.0,88696.0,0.05664]
[1767115677527,0.16800966,88710.0,88696.0,0.05664]
[1767115680234,0.16800966,88710.0,88694.0,0.01145586]
[1767115680439,0.16800966,88690.0,88656.0,0.05664]
[1767115680730,0.16800966,88670.0,88656.0,0.05664]
[1767115680930,0.05664,88679.0,88663.0,0.0112907]
[1767115681129,0.05664,88679.0,88624.0,0.09043155]
[1767115681337,0.00016916,88662.0,88644.0,0.00016916]
[1767115681837,0.0112911,88661.0,88644.0,0.00016916]
[1767115682138,0.05680916,88662.0,88644.0,0.00016916]
[1767115682727,6e-08,88662.0,88644.0,0.00016916]
[1767115682938,0.05664,88697.0,88653.0,0.011292]
[1767115683133,0.05664,88697.0,88670.0,0.16800966]
[1767115683441,0.0112872,88692.0,88671.0,0.05664]
[1767115683739,0.05664,88697.0,88614.0,0.10134741]
[1767115683925,0.05664,88697.0,88610.0,0.0564876]
[1767115683926,0.0112907,88664.0,88652.0,0.00016916]
[1767115684239,0.0112903,88668.0,88652.0,0.00016916]
[1767115684536,0.16800966,88662.0,88652.0,6e-08]
[1767115684734,0.0112916,88658.0,88652.0,6e-08]
[1767115685039,0.011291,88662.0,88652.0,6e-08]
[1767115685243,0.00016916,88670.0,88652.0,6e-08]
[1767115685629,0.00016916,88670.0,88660.0,0.16800966]
[1767115685834,0.00016916,88670.0,88661.0,0.05668]
[1767115687544,0.05668,88685.0,88661.0,0.05668]
[1767115687730,0.0112883,88683.0,88661.0,0.05668]
[1767115687936,0.05668,88685.0,88661.0,0.05668]
[1767115688545,0.00016916,88682.0,88661.0,0.05668]
[1767115688936,0.011289,88677.0,88661.0,0.05668]
[1767115693543,0.00016916,88682.0,88661.0,0.05668]
[1767115693844,0.00016916,88682.0,88654.0,0.05668]
[1767115693845,0.02836313,88681.0,88654.0,0.05668]
[1767115694043,0.0112903,88667.0,88654.0,0.05668]
[1767115694441,0.0112899,88670.0,88654.0,0.05668]
[1767115696351,0.0112899,88670.0,88654.0,0.0679718]
[1767115696742,0.05668,88680.0,88654.0,0.0679718]
[1767115696936,0.02835406,88679.0,88654.0,0.0679718]
[1767115697133,0.02835406,88678.0,88654.0,0.0679718]
[1767115697334,0.0112895,88674.0,88656.0,0.0112916]
[1767115698446,0.0112897,88672.0,88654.0,0.05668]
[1767115698649,0.0112909,88663.0,88652.0,6e-08]
[1767115698843,0.32080594,88680.0,88652.0,6e-08]
[1767115699047,0.0112919,88655.0,88652.0,6e-08]
[1767115699245,0.0112914,88659.0,88652.0,6e-08]
[1767115699849,0.0112918,88656.0,88652.0,6e-08]
[1767115700944,0.01146016,88662.0,88652.0,6e-08]
[1767115701144,0.01146016,88662.0,88622.0,0.011296]
[1767115701145,0.00016916,88662.0,88595.0,0.0112993]
[1767115701347,0.02822404,88661.0,88624.0,0.0112957]
[1767115701647,0.02822404,88661.0,88622.0,0.1044]
[1767115701648,0.02822404,88660.0,88622.0,0.11568]
[1767115701860,0.0112919,88655.0,88623.0,0.05668]
[1767115702151,0.00016916,88662.0,88623.0,0.05668]
[1767115702152,0.16816594,88650.0,88623.0,0.05668]
[1767115702448,0.12418404,88649.0,88630.0,0.00016916]
[1767115702655,0.02822404,88648.0,88630.0,0.00016916]
[1767115702854,0.02822404,88647.0,88630.0,0.00016916]
[1767115703055,0.02822404,88646.0,88630.0,0.00016916]
[1767115703246,0.02822404,88645.0,88630.0,0.00016916]
[1767115703552,0.02822404,88644.0,88630.0,0.00016916]
[1767115703747,0.09596,88649.0,88630.0,0.00016916]
[1767115704054,0.0112935,88643.0,88630.0,0.00016916]
[1767115704750,0.0112933,88644.0,88630.0,0.00016916]
[1767115706258,0.0112935,88642.0,88630.0,0.00016916]
[1767115706859,0.09596,88649.0,88630.0,0.00016916]
[1767115707152,0.0112936,88641.0,88630.0,0.00016916]
[1767115708256,0.02823169,88640.0,88630.0,0.00016916]
[1767115708557,0.0112936,88641.0,88630.0,0.00016916]
[1767115708858,0.02822784,88640.0,88630.0,0.00016916]
[1767115709049,0.0112936,88641.0,88630.0,0.00016916]
[1767115709251,0.02822757,88640.0,88630.0,0.00016916]
[1767115709558,0.02822757,88639.0,88630.0,0.00016916]
[1767115709757,0.02822757,88638.0,88630.0,0.00016916]
[1767115709959,0.0112936,88641.0,88630.0,0.00016916]
[1767115710161,0.02824331,88640.0,88630.0,0.00016916]
[1767115710458,0.02824331,88639.0,88630.0,0.00016916]
[1767115710658,0.02824331,88638.0,88630.0,0.00016916]
[1767115710961,0.02824331,88637.0,88630.0,0.00016916]
[1767115711156,0.02825006,88636.0,88622.0,0.01128]
[1767115711357,0.0112955,88627.0,88593.0,0.01129993]
[1767115711556,0.09596,88637.0,88594.0,0.15264]
[1767115711557,0.0112954,88628.0,88594.0,0.15264]
[1767115711753,0.02825239,88627.0,88594.0,0.15264]
[1767115711960,0.0112954,88628.0,88607.0,0.0112979]
[1767115712263,0.00016926,88626.0,88609.0,0.00016926]
[1767115712758,0.00011836,88625.0,88609.0,0.00016926]
[1767115713765,0.00011836,88625.0,88610.0,0.0112975]
[1767115717455,0.00011836,88625.0,88609.0,0.00016926]
[1767115718465,0.02822564,88624.0,88609.0,0.00016926]
[1767115718762,0.02822564,88623.0,88609.0,0.00016926]
[1767115718963,0.02822458,88622.0,88609.0,0.00016926]
[1767115719165,0.03952078,88621.0,88609.0,0.00016926]
[1767115719358,0.0112962,88621.0,88609.0,0.00016926]
[1767115719564,0.0112962,88621.0,88601.0,0.0112986]
[1767115719764,0.0112958,88624.0,88605.0,0.0112981]
[1767115719968,0.02870761,88623.0,88606.0,0.05668]
[1767115720163,0.02870761,88622.0,88606.0,0.05668]
[1767115720364,0.02870761,88621.0,88607.0,0.0112978]
[1767115720562,0.02870761,88620.0,88607.0,0.0112978]
[1767115720865,0.02870761,88619.0,88607.0,0.0112978]
[1767115721165,0.01141406,88625.0,88607.0,0.0112978]
[1767115721462,0.02871072,88624.0,88609.0,0.0112976]
[1767115721665,0.02871072,88623.0,88609.0,0.0112976]
[1767115721865,0.02871072,88622.0,88609.0,0.0112976]
[1767115722066,0.02871072,88621.0,88611.0,0.0112974]
[1767115722263,0.02871072,88620.0,88611.0,0.0112974]
[1767115722459,0.02871072,88619.0,88611.0,0.0112974]
[1767115722762,0.00016926,88626.0,88606.0,0.05668]
[1767115723270,0.08070665,88647.0,88610.0,0.0112975]
[1767115723459,0.0112916,88657.0,88636.0,0.0112942]
[1767115723769,0.096,88658.0,88638.0,0.0112939]
[1767115724267,0.00016926,88657.0,88643.0,0.0112933]
[1767115725559,0.00016926,88657.0,88646.0,0.0112929]
[1767115726267,0.00016926,88657.0,88643.0,0.0680133]
[1767115727064,0.0112909,88663.0,88645.0,0.011293]
[1767115727966,0.0112909,88663.0,88643.0,0.05672]
[1767115728275,0.00016926,88662.0,88643.0,0.0680132]
[1767115732772,0.0112914,88659.0,88640.0,0.0112937]
[1767115732980,0.0112913,88660.0,88641.0,0.15272]
[1767115734367,0.0112913,88660.0,88642.0,0.0112934]
[1767115735076,0.02791385,88659.0,88642.0,0.0112934]
[1767115735276,0.02791385,88658.0,88642.0,0.0112934]
[1767115735477,0.02791385,88657.0,88642.0,0.0112934]
[1767115735677,0.02791385,88656.0,88642.0,0.0112934]
[1767115735875,5e-08,88655.0,88641.0,0.15272]
[1767115736082,0.011289,88678.0,88655.0,0.0112917]
[1767115736373,0.0112884,88682.0,88656.0,0.15272]
[1767115736564,0.0112884,88682.0,88657.0,0.096]
[1767115737170,0.00016926,88678.0,88661.0,0.01146026]
[1767115739067,0.0112896,88673.0,88661.0,0.00016926]
[1767115740278,0.0112892,88676.0,88661.0,0.00016926]
[1767115741266,0.00016926,88678.0,88661.0,0.00016926]
[1767115741471,0.0112897,88672.0,88661.0,0.00016926]
[1767115741765,0.0112895,88673.0,88654.0,0.01692]
[1767115742879,0.0112895,88673.0,88655.0,0.00016916]
[1767115743287,0.0112895,88673.0,88655.0,0.01146086]
[1767115743586,0.0112895,88673.0,88657.0,0.0112915]
[1767115744885,0.0112895,88673.0,88655.0,0.00016916]
[1767115749784,0.02776186,88672.0,88655.0,0.00016916]
[1767115749981,0.0112908,88664.0,88651.0,0.09596]
[1767115750978,0.0112904,88667.0,88651.0,0.09596]
[1767115751382,0.0112906,88665.0,88651.0,0.09596]
[1767115753692,0.0112916,88658.0,88649.0,0.00016916]
[1767115753891,0.0112917,88657.0,88649.0,0.00016916]
[1767115754898,0.0112911,88661.0,88649.0,0.00016916]
[1767115756394,0.05668,88673.0,88649.0,0.00016916]
[1767115756595,0.0384883,88672.0,88649.0,0.00016916]
[1767115756791,0.0271985,88671.0,88649.0,0.00016916]
[1767115756989,0.0271985,88670.0,88649.0,0.00016916]
[1767115757195,0.0112916,88657.0,88640.0,0.09596]
[1767115757689,0.0112911,88661.0,88640.0,0.09596]
[1767115757993,0.0112913,88659.0,88642.0,0.0112934]
[1767115758188,0.01146046,88659.0,88642.0,0.01140644]
[1767115758389,0.0112919,88655.0,88642.0,0.00011304]
[1767115759587,0.0112916,88657.0,88642.0,0.00011304]